fUST/lending_fUST_20240409
["ID","MTS","AMOUNT","RATE_DAILY","PERIOD"]
[321942967,1712644255709,-500.0,0.0003726,5]
[321942968,1712644255718,-166.81967835,0.0003726,5]
[321942969,1712644255728,-1090.55,0.0003726,2]
[321942970,1712644255737,-572.26,0.0003726,5]
[321942971,1712644255747,-500.0,0.0003726,5]
[321942972,1712644255756,-726.6,0.0003726,5]
[321942973,1712644255765,-1005.68,0.0003726,5]
[321942974,1712644255774,-500.0,0.0003726,5]
[321942975,1712644255783,-678.18,0.0003726,5]
[321942976,1712644255793,-731.24,0.0003726,5]
[321942977,1712644255802,-500.0,0.0003726,5]
[321942978,1712644255811,-500.0,0.0003726,5]
[321942979,1712644255821,-804.77,0.0003726,5]
[321942980,1712644255830,-626.29858566,0.0003726,5]
[321942981,1712644255839,-576.45,0.0003726,5]
[321942982,1712644255849,-1751.33,0.0003726,5]
[321942983,1712644255858,-500.0,0.0003726,5]
[321942984,1712644255867,-500.0,0.0003726,5]
[321942985,1712644255876,-1137.69,0.0003726,5]
[321942986,1712644255886,-500.0,0.0003726,5]
[321942987,1712644255895,-707.33,0.0003726,5]
[321942988,1712644255904,-569.98,0.0003726,5]
[321942989,1712644255913,-888.79,0.0003726,5]
[321942990,1712644255927,-1580.6,0.0003726,5]
[321942991,1712644255977,-598.15,0.0003726,5]
[321942992,1712644255987,-1360.76,0.0003726,5]
[321942993,1712644255998,-828.56,0.0003726,5]
[321942994,1712644256009,-500.0,0.0003726,5]
[321942995,1712644256019,-500.0,0.0003726,5]
[321942996,1712644256030,-993.44,0.0003726,5]
[321942997,1712644256042,-500.0,0.0003726,5]
[321942998,1712644256052,-500.0,0.0003726,5]
[321942999,1712644256063,-151.0,0.0003726,2]
[321943000,1712644256074,-620.78,0.0003726,5]
[321943001,1712644256085,-500.0,0.0003726,5]
[321943002,1712644256096,-151.0,0.0003726,2]
[321943003,1712644256106,-1927.12,0.0003726,5]
[321943004,1712644256116,-2878.25,0.0003726,5]
[321943005,1712644256126,-500.0,0.0003726,5]
[321943006,1712644256139,-500.0,0.0003726,5]
[321943007,1712644256150,-500.0,0.0003726,5]
[321943008,1712644256161,-707.11,0.0003726,5]
[321943009,1712644256172,-500.0,0.0003726,5]
[321943010,1712644256185,-500.0,0.0003726,5]
[321943011,1712644256196,-1211.92,0.0003726,5]
[321943012,1712644256206,-505.1728789,0.0003726,5]
[321943013,1712644256217,-500.0,0.0003726,5]
[321943014,1712644256227,-500.0,0.0003726,5]
[321943015,1712644256236,-662.1,0.0003726,5]
[321943016,1712644256246,-286.4,0.0003726,2]
[321943017,1712644256255,-286.4,0.0003726,2]
[321943018,1712644256265,-502.49362392,0.0003726,5]
[321943019,1712644256274,-784.21,0.0003726,5]
[321943020,1712644256284,-500.0,0.0003726,5]
[321943021,1712644256294,-500.0,0.0003726,5]
[321943022,1712644256304,-500.0,0.0003726,5]
[321943023,1712644256315,-504.67387645,0.0003726,5]
[321943024,1712644256325,-371.54199,0.0003726,2]
[321943025,1712644256335,-371.54199,0.0003726,2]
[321943026,1712644256345,-3163.23,0.0003726,5]
[321943027,1712644256354,-4188.93,0.0003726,5]
[321943028,1712644256366,-2244.88,0.0003726,5]
[321943029,1712644256376,-824.79,0.0003726,5]
[321943030,1712644256386,-500.0,0.0003726,5]
[321943031,1712644256397,-7674.51,0.0003726,5]
[321943032,1712644256406,-1192.88,0.0003726,5]
[321943033,1712644256415,-2016.47,0.0003726,5]
[321943034,1712644256425,-500.0,0.0003726,5]
[321943035,1712644256435,-500.0,0.0003726,5]
[321943036,1712644256446,-500.0,0.0003726,5]
[321943037,1712644256457,-1689.72,0.0003726,5]
[321943038,1712644256467,-505.6,0.0003726,5]
[321943039,1712644256478,-1558.55,0.0003726,5]
[321943040,1712644256487,-500.0,0.0003726,5]
[321943041,1712644256498,-1904.85,0.0003726,5]
[321943042,1712644256508,-2356.88,0.0003726,5]
[321943043,1712644256598,-434.914109,0.0003726,2]
[321943044,1712644256609,-500.0,0.0003726,5]
[321943045,1712644256619,-434.914109,0.0003726,2]
[321943046,1712644256629,-4570.78,0.0003726,5]
[321943047,1712644256640,-151.0,0.0003726,2]
[321943048,1712644256650,-151.0,0.0003726,2]
[321943049,1712644256659,-500.0,0.0003726,5]
[321943050,1712644256668,-2823.83,0.0003726,5]
[321943051,1712644256678,-500.0,0.0003726,5]
[321943052,1712644256688,-151.0,0.0003726,2]
[321943053,1712644256698,-500.0,0.0003726,5]
[321943054,1712644256707,-3703.71,0.0003726,5]
[321943055,1712644256717,-873.77,0.0003726,5]
[321943056,1712644256729,-1560.45,0.0003726,5]
[321943057,1712644256738,-784.8,0.0003726,5]
[321943058,1712644256747,-2227.54,0.0003726,5]
[321943059,1712644256756,-2502.36,0.0003726,5]
[321943060,1712644256765,-1211.4,0.0003726,5]
[321943061,1712644256775,-739.26,0.0003726,5]
[321943062,1712644256785,-951.7,0.0003726,5]
[321943063,1712644256793,-2674.63,0.0003726,5]
[321943064,1712644256802,-500.0,0.0003726,5]
[321943065,1712644256811,-646.31,0.0003726,5]
[321943066,1712644256820,-500.0,0.0003726,5]
[321943067,1712644256830,-2199.43,0.0003726,5]
[321943068,1712644256839,-1846.58,0.0003726,5]
[321943069,1712644256848,-27763.92,0.0003726,5]
[321943070,1712644256858,-616.89,0.0003726,5]
[321943071,1712644256867,-500.0,0.0003726,5]
[321943072,1712644256876,-500.0,0.0003726,5]
[321943073,1712644256886,-5327.83,0.0003726,5]
[321943074,1712644256895,-576.52,0.0003726,5]
[321943075,1712644256904,-500.0,0.0003726,5]
[321943076,1712644256913,-21357.3,0.0003726,5]
[321943077,1712644256922,-3893.51,0.0003726,5]
[321943078,1712644256932,-218.048773,0.0003726,2]
[321943079,1712644256942,-157.51047432,0.0003726,5]
[321943080,1712644256953,-950.88,0.0003726,5]
[321943081,1712644256963,-218.048773,0.0003726,2]
[321943082,1712644256973,-546.89,0.0003726,5]
[321943083,1712644256982,-583.29,0.0003726,5]
[321943084,1712644256993,-8330.43,0.0003726,5]
[321943085,1712644257004,-946.36,0.0003726,5]
[321943086,1712644257013,-226.69408208,0.0003726,5]
[321943087,1712644257023,-2691.11,0.0003726,5]
[321943088,1712644257033,-500.0,0.0003726,5]
[321943089,1712644257044,-504.27,0.0003726,5]
[321943090,1712644257054,-500.0,0.0003726,5]
[321943091,1712644257064,-1888.59,0.0003726,5]
[321943092,1712644257074,-500.0,0.0003726,5]
[321943093,1712644257084,-1143.33,0.0003726,5]
[321943094,1712644257094,-784.59,0.0003726,5]
[321943095,1712644257107,-4762.99,0.0003726,5]
[321943096,1712644257117,-2661.19,0.0003726,5]
[321943097,1712644257129,-517.68,0.0003726,5]
[321943098,1712644257139,-375.6480792,0.0003726,5]
[321943099,1712644257150,-9659.96,0.0003726,5]
[321943100,1712644257165,-663.52816129,0.0003733,2]
[321943101,1712644257176,-585.0,0.000374,2]
[321943102,1712644257187,-2000.0,0.000375,14]
[321943103,1712644257197,-168.411877,0.000375,2]
[321943104,1712644257209,-1288.961428,0.000375,2]
[321943105,1712644257219,-2062.3382848,0.000375,2]
[321943106,1712644257231,-2000.0,0.0003751,14]
[321943107,1712644257240,-2000.0,0.0003752,14]
[321943108,1712644257249,-2000.0,0.0003753,14]
[321943109,1712644257260,-193.18347694,0.00037532,4]
[321943110,1712644257270,-154.98450155,0.00037534,4]
[321943111,1712644257281,-500.0,0.00037534,5]
[321943112,1712644257292,-500.0,0.00037534,5]
[321943113,1712644257302,-500.0,0.00037534,5]
[321943114,1712644257312,-1012.1,0.00037534,5]
[321943115,1712644257323,-500.0,0.00037534,5]
[321943116,1712644257333,-500.0,0.00037534,5]
[321943117,1712644257342,-207.24501136,0.00037534,5]
[321943118,1712644257352,-1090.55,0.00037534,2]
[321943119,1712644257361,-572.26,0.00037534,5]
[321943120,1712644257371,-500.0,0.00037534,5]
[321943121,1712644257381,-726.6,0.00037534,5]
[321943122,1712644257390,-1005.68,0.00037534,5]
[321943123,1712644257399,-500.0,0.00037534,5]
[321943124,1712644257410,-678.18,0.00037534,5]
[321943125,1712644257422,-731.24,0.00037534,5]
[321943126,1712644257431,-500.0,0.00037534,5]
[321943127,1712644257444,-500.0,0.00037534,5]
[321943128,1712644257455,-804.77,0.00037534,5]
[321943129,1712644257465,-576.45,0.00037534,5]
[321943130,1712644257475,-1751.33,0.00037534,5]
[321943131,1712644257485,-500.0,0.00037534,5]
[321943132,1712644257495,-500.0,0.00037534,5]
[321943133,1712644257506,-1137.69,0.00037534,5]
[321943134,1712644257516,-500.0,0.00037534,5]
[321943135,1712644257525,-707.33,0.00037534,5]
[321943136,1712644257534,-569.98,0.00037534,5]
[321943137,1712644257545,-888.79,0.00037534,5]
[321943138,1712644257555,-1580.6,0.00037534,5]
[321943139,1712644257565,-598.15,0.00037534,5]
[321943140,1712644257576,-1360.76,0.00037534,5]
[321943141,1712644257585,-828.56,0.00037534,5]
[321943142,1712644257598,-500.0,0.00037534,5]
[321943143,1712644257608,-500.0,0.00037534,5]
[321943144,1712644257617,-993.44,0.00037534,5]
[321943145,1712644257627,-444.98895609,0.00037534,5]
[321943146,1712644257637,-500.0,0.00037534,5]
[321943147,1712644257646,-151.0,0.00037534,2]
[321943148,1712644257656,-620.78,0.00037534,5]
[321943149,1712644257665,-500.0,0.00037534,5]
[321943150,1712644257675,-151.0,0.00037534,2]
[321943151,1712644257686,-1927.12,0.00037534,5]
[321943152,1712644257695,-2878.25,0.00037534,5]
[321943153,1712644257705,-500.0,0.00037534,5]
[321943154,1712644257715,-500.0,0.00037534,5]
[321943155,1712644257724,-500.0,0.00037534,5]
[321943156,1712644257735,-707.11,0.00037534,5]
[321943157,1712644257744,-157.27052097,0.00037534,4]
[321943158,1712644257754,-500.0,0.00037534,5]
[321943159,1712644257763,-500.0,0.00037534,5]
[321943160,1712644257774,-831.48176232,0.00037534,4]
[321943161,1712644257784,-1211.92,0.00037534,5]
[321943162,1712644257794,-3406.58437181,0.00037534,4]
[321943163,1712644257803,-500.0,0.00037534,5]
[321943164,1712644257813,-662.1,0.00037534,5]
[321943165,1712644257822,-286.4,0.00037534,2]
[321943166,1712644257831,-286.4,0.00037534,2]
[321943167,1712644257840,-784.21,0.00037534,5]
[321943168,1712644257850,-500.0,0.00037534,5]
[321943169,1712644257860,-500.0,0.00037534,5]
[321943170,1712644257870,-500.0,0.00037534,5]
[321943171,1712644257879,-371.54199,0.00037534,2]
[321943172,1712644257888,-371.54199,0.00037534,2]
[321943173,1712644257898,-3163.23,0.00037534,5]
[321943174,1712644257908,-4188.93,0.00037534,5]
[321943175,1712644257917,-2244.88,0.00037534,5]
[321943176,1712644257926,-824.79,0.00037534,5]
[321943177,1712644257936,-415.7393388,0.00037534,5]
[321943178,1712644257947,-7674.51,0.00037534,5]
[321943179,1712644257956,-1192.88,0.00037534,5]
[321943180,1712644257966,-2016.47,0.00037534,5]
[321943181,1712644257976,-500.0,0.00037534,5]
[321943182,1712644257985,-500.0,0.00037534,5]
[321943183,1712644257996,-500.0,0.00037534,5]
[321943184,1712644258005,-1689.72,0.00037534,5]
[321943185,1712644258015,-505.6,0.00037534,5]
[321943186,1712644258026,-1558.55,0.00037534,5]
[321943187,1712644258103,-500.0,0.00037534,5]
[321943188,1712644258114,-1904.85,0.00037534,5]
[321943189,1712644258124,-2356.88,0.00037534,5]
[321943190,1712644258133,-500.0,0.00037534,5]
[321943191,1712644258147,-4570.78,0.00037534,5]
[321943192,1712644258157,-151.0,0.00037534,2]
[321943193,1712644258169,-500.0,0.00037534,5]
[321943194,1712644258178,-2823.83,0.00037534,5]
[321943195,1712644258191,-500.0,0.00037534,5]
[321943196,1712644258201,-500.0,0.00037534,5]
[321943197,1712644258211,-3703.71,0.00037534,5]
[321943198,1712644258222,-873.77,0.00037534,5]
[321943199,1712644258233,-1560.45,0.00037534,5]
[321943200,1712644258244,-784.8,0.00037534,5]
[321943201,1712644258255,-2227.54,0.00037534,5]
[321943202,1712644258265,-2502.36,0.00037534,5]
[321943203,1712644258275,-1211.4,0.00037534,5]
[321943204,1712644258284,-739.26,0.00037534,5]
[321943205,1712644258294,-2674.63,0.00037534,5]
[321943206,1712644258303,-951.7,0.00037534,5]
[321943207,1712644258313,-500.0,0.00037534,5]
[321943208,1712644258324,-646.31,0.00037534,5]
[321943209,1712644258334,-500.0,0.00037534,5]
[321943210,1712644258343,-2199.43,0.00037534,5]
[321943211,1712644258353,-1846.58,0.00037534,5]
[321943212,1712644258364,-27763.92,0.00037534,5]
[321943213,1712644258373,-616.89,0.00037534,5]
[321943214,1712644258383,-500.0,0.00037534,5]
[321943215,1712644258393,-500.0,0.00037534,5]
[321943216,1712644258403,-5327.83,0.00037534,5]
[321943217,1712644258413,-576.52,0.00037534,5]
[321943218,1712644258423,-500.0,0.00037534,5]
[321943219,1712644258433,-21357.3,0.00037534,5]
[321943220,1712644258444,-3893.51,0.00037534,5]
[321943221,1712644258454,-218.048773,0.00037534,2]
[321943222,1712644258464,-950.88,0.00037534,5]
[321943223,1712644258474,-218.048773,0.00037534,2]
[321943224,1712644258484,-546.89,0.00037534,5]
[321943225,1712644258495,-583.29,0.00037534,5]
[321943226,1712644258505,-8330.43,0.00037534,5]
[321943227,1712644258515,-946.36,0.00037534,5]
[321943228,1712644258525,-2691.11,0.00037534,5]
[321943229,1712644258535,-500.0,0.00037534,5]
[321943230,1712644258545,-504.27,0.00037534,5]
[321943231,1712644258556,-500.0,0.00037534,5]
[321943232,1712644258567,-1888.59,0.00037534,5]
[321943233,1712644258576,-500.0,0.00037534,5]
[321943234,1712644258586,-1143.33,0.00037534,5]
[321943235,1712644258596,-784.59,0.00037534,5]
[321943236,1712644258606,-4762.99,0.00037534,5]
[321943237,1712644258615,-2661.19,0.00037534,5]
[321943238,1712644258625,-517.68,0.00037534,5]
[321943239,1712644258634,-9659.96,0.00037534,5]
[321943240,1712644258643,-2000.0,0.0003754,14]
[321943241,1712644258653,-2000.0,0.0003755,14]
[321943242,1712644258662,-2000.0,0.0003756,14]
[321943243,1712644258672,-166.666666,0.00037562,2]
[321943244,1712644258681,-2000.0,0.0003757,14]
[321943245,1712644258692,-2000.0,0.0003758,14]
[321943246,1712644258701,-398.0,0.0003758,35]
[321943247,1712644258710,-353.0,0.0003758,35]
[321943248,1712644258720,-663.52816129,0.00037587,2]
[321943249,1712644258729,-2000.0,0.0003759,14]
[321943250,1712644258738,-398.0,0.0003759,35]
[321943251,1712644258747,-353.0,0.0003759,35]
[321943252,1712644258756,-2000.0,0.000376,14]
[321943253,1712644258765,-434.914109,0.000376,2]
[321943254,1712644258775,-434.914109,0.000376,2]
[321943255,1712644258783,-151.0,0.000376,2]
[321943256,1712644258791,-266.800922,0.000376,2]
[321943257,1712644258800,-398.0,0.000376,35]
[321943258,1712644258809,-353.0,0.000376,35]
[321943259,1712644258818,-2000.0,0.0003761,14]
[321943260,1712644258827,-3216.199491,0.0003762,14]
[321943261,1712644258836,-160.0,0.00037706,5]
[321943262,1712644258846,-6173.0,0.00037778,35]
[321943263,1712644258854,-157.0,0.00037778,35]
[321943264,1712644258863,-6173.0,0.00037788,35]
[321943265,1712644258872,-157.0,0.00037788,35]
[321943266,1712644258882,-6173.0,0.00037798,35]
[321943267,1712644258891,-157.0,0.00037798,35]
[321943268,1712644258900,-500.0,0.00037808,5]
[321943269,1712644258909,-311.98738144,0.00037808,5]
[321943270,1712644258919,-500.0,0.00037808,5]
[321943271,1712644258928,-1012.1,0.00037808,5]
[321943272,1712644258939,-500.0,0.00037808,5]
[321943273,1712644258948,-500.0,0.00037808,5]
[321943274,1712644258957,-1090.55,0.00037808,2]
[321943275,1712644258966,-572.26,0.00037808,5]
[321943276,1712644258975,-500.0,0.00037808,5]
[321943277,1712644258984,-726.6,0.00037808,5]
[321943278,1712644258993,-1005.68,0.00037808,5]
[321943279,1712644259003,-500.0,0.00037808,5]
[321943280,1712644259012,-678.18,0.00037808,5]
[321943281,1712644259023,-731.24,0.00037808,5]
[321943282,1712644259033,-500.0,0.00037808,5]
[321943283,1712644259043,-507.09992428,0.00037808,5]
[321943284,1712644259055,-804.77,0.00037808,5]
[321943285,1712644259064,-576.45,0.00037808,5]
[321943286,1712644259073,-1751.33,0.00037808,5]
[321943287,1712644259082,-500.0,0.00037808,5]
[321943288,1712644259091,-500.0,0.00037808,5]
[321943289,1712644259100,-1137.69,0.00037808,5]
[321943290,1712644259110,-500.0,0.00037808,5]
[321943291,1712644259120,-707.33,0.00037808,5]
[321943292,1712644259129,-569.98,0.00037808,5]
[321943293,1712644259138,-888.79,0.00037808,5]
[321943294,1712644259147,-1580.6,0.00037808,5]
[321943295,1712644259155,-598.15,0.00037808,5]
[321943296,1712644259166,-1360.76,0.00037808,5]
[321943297,1712644259176,-828.56,0.00037808,5]
[321943298,1712644259186,-500.0,0.00037808,5]
[321943299,1712644259195,-500.0,0.00037808,5]
[321943300,1712644259204,-993.44,0.00037808,5]
[321943301,1712644259214,-500.0,0.00037808,5]
[321943302,1712644259223,-151.0,0.00037808,2]
[321943303,1712644259232,-620.78,0.00037808,5]
[321943304,1712644259243,-500.0,0.00037808,5]
[321943305,1712644259253,-151.0,0.00037808,2]
[321943306,1712644259262,-1927.12,0.00037808,5]
[321943307,1712644259271,-2878.25,0.00037808,5]
[321943308,1712644259282,-500.0,0.00037808,5]
[321943309,1712644259291,-500.0,0.00037808,5]
[321943310,1712644259301,-500.0,0.00037808,5]
[321943311,1712644259311,-707.11,0.00037808,5]
[321943312,1712644259320,-500.0,0.00037808,5]
[321943313,1712644259330,-500.0,0.00037808,5]
[321943314,1712644259339,-1211.92,0.00037808,5]
[321943315,1712644259349,-500.0,0.00037808,5]
[321943316,1712644259358,-662.1,0.00037808,5]
[321943317,1712644259369,-286.4,0.00037808,2]
[321943318,1712644259378,-286.4,0.00037808,2]
[321943319,1712644259387,-784.21,0.00037808,5]
[321943320,1712644259396,-500.0,0.00037808,5]
[321943321,1712644259471,-500.0,0.00037808,5]
[321943322,1712644259480,-500.0,0.00037808,5]
[321943323,1712644259489,-371.54199,0.00037808,2]
[321943324,1712644259498,-371.54199,0.00037808,2]
[321943325,1712644259507,-3163.23,0.00037808,5]
[321943326,1712644259518,-4188.93,0.00037808,5]
[321943327,1712644259527,-2244.88,0.00037808,5]
[321943328,1712644259536,-824.79,0.00037808,5]
[321943329,1712644259544,-7674.51,0.00037808,5]
[321943330,1712644259552,-1192.88,0.00037808,5]
[321943331,1712644259561,-2016.47,0.00037808,5]
[321943332,1712644259571,-500.0,0.00037808,5]
[321943333,1712644259579,-500.0,0.00037808,5]
[321943334,1712644259588,-500.0,0.00037808,5]
[321943335,1712644259597,-1689.72,0.00037808,5]
[321943336,1712644259606,-505.6,0.00037808,5]
[321943337,1712644259615,-1558.55,0.00037808,5]
[321943338,1712644259624,-620.33550114,0.00037808,5]
[321943339,1712644259634,-1904.85,0.00037808,5]
[321943340,1712644259643,-2356.88,0.00037808,5]
[321943341,1712644259652,-500.0,0.00037808,5]
[321943342,1712644259661,-4570.78,0.00037808,5]
[321943343,1712644259670,-151.0,0.00037808,2]
[321943344,1712644259679,-500.0,0.00037808,5]
[321943345,1712644259690,-2823.83,0.00037808,5]
[321943346,1712644259698,-500.0,0.00037808,5]
[321943347,1712644259708,-500.0,0.00037808,5]
[321943348,1712644259717,-3703.71,0.00037808,5]
[321943349,1712644259726,-873.77,0.00037808,5]
[321943350,1712644259735,-1560.45,0.00037808,5]
[321943351,1712644259745,-784.8,0.00037808,5]
[321943352,1712644259754,-2227.54,0.00037808,5]
[321943353,1712644259764,-2502.36,0.00037808,5]
[321943354,1712644259774,-1211.4,0.00037808,5]
[321943355,1712644259784,-739.26,0.00037808,5]
[321943356,1712644259794,-951.7,0.00037808,5]
[321943357,1712644259804,-2674.63,0.00037808,5]
[321943358,1712644259813,-500.0,0.00037808,5]
[321943359,1712644259822,-646.31,0.00037808,5]
[321943360,1712644259831,-500.0,0.00037808,5]
[321943361,1712644259840,-2199.43,0.00037808,5]
[321943362,1712644259851,-1846.58,0.00037808,5]
[321943363,1712644259860,-27763.92,0.00037808,5]
[321943364,1712644259869,-616.89,0.00037808,5]
[321943365,1712644259879,-500.0,0.00037808,5]
[321943366,1712644259889,-500.0,0.00037808,5]
[321943367,1712644259898,-5327.83,0.00037808,5]
[321943368,1712644259907,-576.52,0.00037808,5]
[321943369,1712644259917,-500.0,0.00037808,5]
[321943370,1712644259927,-21357.3,0.00037808,5]
[321943371,1712644259938,-3893.51,0.00037808,5]
[321943372,1712644259949,-218.048773,0.00037808,2]
[321943373,1712644259959,-950.88,0.00037808,5]
[321943374,1712644259969,-546.89,0.00037808,5]
[321943375,1712644259979,-583.29,0.00037808,5]
[321943376,1712644259990,-218.048773,0.00037808,2]
[321943377,1712644260001,-8330.43,0.00037808,5]
[321943378,1712644260012,-946.36,0.00037808,5]
[321943379,1712644260024,-2691.11,0.00037808,5]
[321943380,1712644260035,-500.0,0.00037808,5]
[321943381,1712644260047,-504.27,0.00037808,5]
[321943382,1712644260057,-500.0,0.00037808,5]
[321943383,1712644260068,-1888.59,0.00037808,5]
[321943384,1712644260078,-500.0,0.00037808,5]
[321943385,1712644260088,-1143.33,0.00037808,5]
[321943386,1712644260098,-784.59,0.00037808,5]
[321943387,1712644260111,-4762.99,0.00037808,5]
[321943388,1712644260122,-2661.19,0.00037808,5]
[321943389,1712644260132,-517.68,0.00037808,5]
[321943390,1712644260142,-9659.96,0.00037808,5]
[321943391,1712644260153,-663.52816129,0.00037843,2]
[321943392,1712644260166,-150.0,0.00037889,2]
[321943393,1712644260177,-157.0,0.0003797,35]
[321943394,1712644260188,-157.0,0.0003798,35]
[321943395,1712644260197,-157.0,0.0003798,35]
[321943396,1712644260208,-157.0,0.0003799,35]
[321943397,1712644260218,-157.0,0.0003799,35]
[321943398,1712644260228,-1000.0,0.00038,2]
[321943399,1712644260238,-1333.20001333,0.00038,6]
[321943400,1712644260247,-398.0,0.0003803,35]
[321943401,1712644260257,-353.0,0.0003803,35]
[321943402,1712644260266,-398.0,0.0003804,35]
[321943403,1712644260278,-353.0,0.0003804,35]
[321943404,1712644260288,-6173.0,0.0003805,35]
[321943405,1712644260298,-434.914109,0.0003805,2]
[321943406,1712644260309,-434.914109,0.0003805,2]
[321943407,1712644260321,-151.0,0.0003805,2]
[321943408,1712644260331,-6173.0,0.0003806,35]
[321943409,1712644260341,-6173.0,0.0003806,35]
[321943410,1712644260351,-6173.0,0.0003807,35]
[321943411,1712644260362,-6173.0,0.0003807,35]
[321943412,1712644260371,-160.0,0.00038073,6]
[321943413,1712644260382,-153.0,0.00038075,2]
[321943414,1712644260391,-153.0,0.00038075,2]
[321943415,1712644260401,-306.0,0.00038075,2]
[321943416,1712644260411,-153.0,0.00038075,2]
[321943417,1712644260422,-153.0,0.00038075,2]
[321943418,1712644260433,-153.0,0.00038075,2]
[321943419,1712644260445,-306.0,0.00038075,2]
[321943420,1712644260456,-153.0,0.00038075,2]
[321943421,1712644260466,-153.0,0.00038075,2]
[321943422,1712644260476,-153.0,0.00038075,2]
[321943423,1712644260486,-153.0,0.00038075,2]
[321943424,1712644260496,-153.0,0.00038075,2]
[321943425,1712644260507,-153.0,0.00038075,2]
[321943426,1712644260516,-153.0,0.00038075,2]
[321943427,1712644260525,-153.0,0.00038075,2]
[321943428,1712644260534,-153.0,0.00038075,2]
[321943429,1712644260543,-202.7418102,0.00038082,2]
[321943430,1712644260552,-202.7418102,0.00038082,2]
[321943431,1712644260562,-202.7418102,0.00038082,2]
[321943432,1712644260572,-202.7418102,0.00038082,2]
[321943433,1712644260581,-202.7418102,0.00038082,2]
[321943434,1712644260591,-202.7418102,0.00038082,2]
[321943435,1712644260600,-202.7418102,0.00038082,2]
[321943436,1712644260611,-202.7418102,0.00038082,2]
[321943437,1712644260622,-202.7418102,0.00038082,2]
[321943438,1712644260632,-202.7418102,0.00038082,2]
[321943439,1712644260643,-405.2247804,0.00038082,2]
[321943440,1712644260652,-202.7418102,0.00038082,2]
[321943441,1712644260664,-201.33614527,0.00038082,5]
[321943442,1712644260673,-500.0,0.00038082,5]
[321943443,1712644260682,-1012.1,0.00038082,5]
[321943444,1712644260758,-500.0,0.00038082,5]
[321943445,1712644260768,-500.0,0.00038082,5]
[321943446,1712644260778,-1090.55,0.00038082,2]
[321943447,1712644260788,-572.26,0.00038082,5]
[321943448,1712644260798,-500.0,0.00038082,5]
[321943449,1712644260808,-726.6,0.00038082,5]
[321943450,1712644260817,-1005.68,0.00038082,5]
[321943451,1712644260827,-500.0,0.00038082,5]
[321943452,1712644260836,-678.18,0.00038082,5]
[321943453,1712644260846,-731.24,0.00038082,5]
[321943454,1712644260855,-500.0,0.00038082,5]
[321943455,1712644260864,-804.77,0.00038082,5]
[321943456,1712644260873,-576.45,0.00038082,5]
[321943457,1712644260883,-1751.33,0.00038082,5]
[321943458,1712644260893,-500.0,0.00038082,5]
[321943459,1712644260901,-500.0,0.00038082,5]
[321943460,1712644260910,-1137.69,0.00038082,5]
[321943461,1712644260920,-500.0,0.00038082,5]
[321943462,1712644260930,-707.33,0.00038082,5]
[321943463,1712644260940,-569.98,0.00038082,5]
[321943464,1712644260949,-888.79,0.00038082,5]
[321943465,1712644260959,-1580.6,0.00038082,5]
[321943466,1712644260968,-598.15,0.00038082,5]